Cogmind - Beta 15 @@@ ROGUE MODE // 2025.06.25 @ 17:42:16 Player: Skysub Result: Destroyed by S-10 Pest with Light Assault Rifle Performance ------------- Evolutions (0) 0 Regions Visited (2) 400 Robots Destroyed (31) 155 Value Destroyed (725) 725 Prototype IDs (0) 0 Alien Tech Used (0) 0 Bonus (-12) -12 TOTAL SCORE: 1268 Bonus ------- Friendly Fire -12 Cogmind --------- Core Integrity 0/250 Matter 185/300 Energy 125/125 System Corruption 0% Temperature Cool (0) Movement Rolling (105) Location -10/Subcaves Parts ------- > --- POWER (1) -------- Light Ion Engine > --- PROPULSION (2) --- Compact Wheel Subdweller Monowheel > --- UTILITY (2) ------ Large Storage Unit Subdweller Optics > --- WEAPON (2) ------- Grenade Launcher Mining Laser > --- INVENTORY (15) --- Subdweller Power Source Light Treads Light Treads Subdweller Monowheel Subdweller Monowheel Small Storage Unit Subdweller Optics Subdweller Optics Subdweller Laser Assault Rifle Subdweller Machine Gun Subdweller Machine Gun Subdweller Machine Gun Peak State ------------ > --- POWER ------------ Light Ion Engine > --- PROPULSION ------- Light Treads Compact Wheel > --- UTILITY ---------- Large Storage Unit Subdweller Optics > --- WEAPON ----------- Subdweller Machine Gun Grenade Launcher > --- INVENTORY -------- Subdweller Power Source Subdweller Monowheel Subdweller Monowheel Subdweller Monowheel Small Storage Unit Subdweller Optics Subdweller Optics Subdweller Laser Assault Rifle Subdweller Machine Gun Subdweller Machine Gun Mining Laser [Rating: 11] Favorites ----------- Power Ion Engine Engine Ion Engine Propulsion Light Treads Treads Light Treads Wheel Compact Wheel Utility Large Storage Unit Device Improved Terrain Scanner Storage Large Storage Unit Protection Core Shielding Weapon Assault Rifle Ballistic Gun Assault Rifle Launcher Grenade Launcher Special Weapon Mining Laser Build | -11 -10 -10 ------- Run | Yrd Mat Sub Slots Evolved . | . . . Power . | . . . Propulsion . | . . . Utility . | . . . Weapon . | . . . Parts Attached 20 | 7 3 10 Power 2 | 1 1 . Engine 2 | 1 1 . Core . | . . . Reactor . | . . . Propulsion 6 | 2 . 4 Treads 4 | 2 . 2 Leg . | . . . Wheel 2 | . . 2 Hover . | . . . Flight . | . . . Utility 6 | 2 2 2 Device 3 | 1 1 1 Storage 2 | 1 1 . Processor . | . . . Hackware . | . . . Protection 1 | . . 1 Artifact . | . . . Weapon 6 | 2 . 4 Energy Gun . | . . . Energy Cannon . | . . . Ballistic Gun 4 | 2 . 2 Ballistic Cannon . | . . . Launcher 1 | . . 1 Special Weapon 1 | . . 1 Impact Weapon . | . . . Slashing Weapon . | . . . Piercing Weapon . | . . . Special Melee Weapon . | . . . Unidentified Prototypes . | . . . Parts Lost 8 | . 2 6 Power 1 | . 1 . Propulsion 2 | . . 2 Utility 3 | . 1 2 Weapon 2 | . . 2 Highest Loss Streak 3 | . 1 3 To Critical Strikes . | . . . Average Backups 7 | 1 5 11 Power . | . 1 . Propulsion 2 | . 1 3 Utility 1 | . . 3 Weapon 3 | . 2 4 Tool/Special . | . . . Unused Backups 8 | . . 8 Power 1 | . . 1 Propulsion 2 | . . 2 Utility 2 | . . 2 Weapon 3 | . . 3 Tool/Special . | . . . Average Slot Usage (%) 97 | . 96 98 Engine 13 | . 12 14 Treads 22 | . 28 16 Wheel 5 | . . 11 Device 12 | . 11 13 Storage 14 | . 14 14 Ballistic Gun 18 | . 28 7 Launcher 6 | . . 13 Special Weapon 2 | . . 6 Peak Build Rating 11 | 9 9 11 Average Rating 8 | 6 8 9 On Entrance 5 | . 9 7 Naked Turns . | . . . Heaviest Build 32 | 15 30 32 Greatest Support 40 | 40 40 40 Greatest Overweight (x) 1 | . . 1 Average Overweight (x) . | . . . Largest Inventory Capacity 15 | 8 15 15 Average Capacity 11 | 7 9 15 Most Carried 13 | 3 7 13 Average Carried 7 | 1 5 11 Final Capacity 15 | 8 15 15 Final Carried 13 | 3 6 13 Class Distribution -------------------- 100% | Mutant Dominant Class ---------------- Mutant | -10/Materials Mutant | -10/Subcaves Resources | -11 -10 -10 ----------- Run | Yrd Mat Sub Matter Collected 787 | 299 210 278 Remotely . | . . . Salvage Created 912 | 125 503 284 Parts 59 | 11 31 17 Haulers Intercepted 1 | . 1 . Recyclers Shooed . | . . . Parts Field Recycled . | . . . Retrieved Matter . | . . . Parts Self-Destructed 7 | . . 7 Prevented . | . . . Kills | -11 -10 -10 ------- Run | Yrd Mat Sub Combat Hostiles Destroyed 23 | . 14 9 Guns 16 | . 14 2 AOE 7 | . . 7 Classes Destroyed 9 | 2 5 2 Worker 1 | 1 . . Builder 1 | . 1 . Tunneler 4 | 4 . . Hauler 1 | . 1 . Watcher 1 | . 1 . Swarmer 7 | . 7 . Grunt 7 | . 7 . Sentry 1 | . . 1 Subdweller 8 | . . 8 Best Kill Streak 5 | 3 5 2 Combat Bots Only 5 | . 5 2 Max Kills in Single Turn 2 | 2 1 2 Gunslinging . | . . . Exploded 2 | . . 2 Melee . | . . . Uniques/NPCs Destroyed . | . . . Combat | -11 -10 -10 -------- Run | Yrd Mat Sub Hostile Shots Fired 103 | . 72 31 Missed 30 | . 19 11 Hits 73 | . 53 20 Projectile 73 | . 53 20 AOE 2 | . . 2 Damage Taken 1072 | . 552 520 Core 251 | . 53 198 Absorbed by Shields . | . . . Redirected to Shielding 7 | . . 7 Core Remaining (%) 100 | 100 . . Volleys Fired 80 | 6 50 24 Largest 2 | 2 2 2 Hottest 100 | 40 40 100 Shots Fired 145 | 12 100 33 Gun 123 | 12 100 11 Cannon . | . . . Launcher 14 | . . 14 Special 8 | . . 8 Kinetic 123 | 12 100 11 Thermal 8 | . . 8 Explosive 14 | . . 14 Electromagnetic . | . . . Robot Hit Streak 16 | 3 11 16 Robot Miss Streak 4 | 1 4 1 Penetration Max . | . . . Secondary Targets . | . . . Shots Hit Robots 87 | 7 61 19 Core Hits 46 | 5 25 16 Critical Kills 2 | . 1 1 Critical Parts Destroyed . | . . . Critical Strikes 2 | . 1 1 Destroy 2 | . 1 1 Melee Attacks . | . . . Impact . | . . . Slashing . | . . . Piercing . | . . . Sneak Attacks . | . . . Combat Hostiles . | . . . Follow-up Attacks . | . . . Damage Inflicted 1613 | 104 784 725 Guns 1041 | 104 779 158 Cannons . | . . . Explosions 567 | . . 567 Melee . | . . . Ramming 5 | . 5 . Kinetic 1041 | 104 779 158 Thermal . | . . . Explosive 567 | . . 567 Electromagnetic . | . . . Impact . | . . . Slashing . | . . . Piercing . | . . . Highest Corruption . | . . . Average Corruption . | . . . Corruption Purged . | . . . Corruption Blocked . | . . . Overload Shots . | . . . Overflow Damage . | . . . Projectiles . | . . . Explosions . | . . . Melee . | . . . Knockbacks . | . . . Impact . | . . . Kinetic . | . . . Secondary . | . . . Self-Inflicted Damage 21 | . . 21 Shots 1 | . . 1 Rammed 1 | . 1 . Targets Rammed 1 | . 1 . Kicked . | . . . Crushed . | . . . Highest Temperature . | . . . Average Temperature . | . . . Received Heat Transfer 288 | . 192 96 Siege Activations . | . . . Martial Activations . | . . . Shielding Activations . | . . . Robots Disrupted . | . . . Combat Hostiles . | . . . Robots Corrupted . | . . . Combat Hostiles . | . . . Parts Fried . | . . . Impact Corruptions . | . . . Robots Melted . | . . . Combat Hostiles . | . . . Parts Melted 1 | . . 1 Heat Transferred . | . . . Parts Sabotaged . | . . . Parts Stolen . | . . . Parts Stripped . | . . . Power Chain Reactions . | . . . Alert | -11 -10 -10 ------- Run | Yrd Mat Sub Maximum Alert Level . | . . . Low Security (%) 100 | 100 100 . Level 1 . | . . . Level 2 . | . . . Level 3 . | . . . Level 4 . | . . . Level 5 . | . . . High Security . | . . . Max Security . | . . . Peak Influence 190 | 10 190 . Initial 6 | . 6 . Average 76 | 2 85 . Influence Increases 576 | 25 501 50 Destroy 0b10 Robot/C 300 | . 280 20 Destroy 0b10 Robot/NC 40 | 25 15 . Destroy Leader 54 | . 54 . Select Force Hacks 30 | . 30 . Destroy Structure 2 | . 2 . Lose Combat Pursuer 150 | . 120 30 Influence Decreases 546 | 15 402 129 Entered New Map 57 | . 4 53 Time Decay 439 | 15 378 46 Lost Part 50 | . 20 30 Squads Dispatched 3 | . 3 . Investigation 3 | . 3 . Extermination . | . . . Reinforcement . | . . . Assault . | . . . Garrison . | . . . Intercept . | . . . Searches Triggered . | . . . Construction Impeded . | . . . Haulers Reinforced . | . . . Active Scanning Responses . | . . . Cargo Convoy Interrupts . | . . . Stealth | -11 -10 -10 --------- Run | Yrd Mat Sub Distress Signals 5 | . 5 . Communications Jammed . | . . . Distress Signals . | . . . Times Spotted 39 | . 28 11 Peak Tracking Total 6 | . 6 3 Tactical Retreats 5 | . 4 1 Traps | -11 -10 -10 ------- Run | Yrd Mat Sub Traps Triggered 3 | . 2 1 Indirectly . | . . . Trap Hack Attempts . | . . . Triggered . | . . . Disarmed . | . . . Reprogrammed . | . . . Reused . | . . . Traps Extracted . | . . . Installed . | . . . Triggered . | . . . Machines | -11 -10 -10 ---------- Run | Yrd Mat Sub Machines Disabled . | . . . Max in Single Turn . | . . . Machines Repaired . | . . . Machines Dismantled . | . . . Machines Sabotaged . | . . . Overloaded Fab Kills . | . . . Hacking | -11 -10 -10 --------- Run | Yrd Mat Sub Machines Accessed 2 | . 2 . Terminals 1 | . 1 . Fabricators . | . . . Repair Stations . | . . . Recycling Units 1 | . 1 . Scanalyzers . | . . . Garrison Access . | . . . Total Hacks 7 | . 7 . Successful 3 | . 3 . Failed 4 | . 4 . Catastrophic 1 | . 1 . Database Lockouts . | . . . Manual 1 | . 1 . Terminals 2 | . 2 . Fabricators . | . . . Repair Stations . | . . . Recycling Units 5 | . 5 . Scanalyzers . | . . . Garrison Access . | . . . Terminal Hacks . | . . . Fabricator Hacks . | . . . Repair Station Hacks . | . . . Recycling Unit Hacks 2 | . 2 . Report Inventory 1 | . 1 . Retrieve Components 1 | . 1 . Scanalyzer . | . . . Garrison Access Hacks . | . . . Unauthorized Hacks 1 | . 1 . Terminals . | . . . Fabricators . | . . . Repair Stations . | . . . Recycling Units 1 | . 1 . Tunnel 1 | . 1 . Scanalyzers . | . . . Garrison Access . | . . . Data Cores Recovered . | . . . Used . | . . . Hacking Detections 2 | . 2 . Full Trace Events 1 | . 1 . Feedback Events . | . . . Feedback Blocked . | . . . Robot Schematics Acquired . | . . . Robots Built . | . . . Authchips . | . . . Time . | . . . Total Robot Build Rating . | . . . Part Schematics Acquired . | . . . Parts Built . | . . . Authchips . | . . . Time . | . . . Total Part Build Rating . | . . . Parts Repaired . | . . . Time . | . . . Parts Recycled . | . . . Recycled Matter . | . . . Retrieved Matter . | . . . Retrieved Components 10 | . 10 . Parts Scanalyzed . | . . . Part Schematics Acquired . | . . . Parts Damaged . | . . . Bothacking | -11 -10 -10 ------------ Run | Yrd Mat Sub Used RIF Installer . | . . . Robots Hacked . | . . . Non-combat . | . . . Combat . | . . . Robot Hacks Applied . | . . . Relay Couplers Released . | . . . Fabnet Peak Effective % . | . . . Robots Rewired . | . . . Allies Hacked . | . . . Hacks Repelled . | . . . Allies | -11 -10 -10 -------- Run | Yrd Mat Sub Total Allies . | . . . Largest Group . | . . . Highest-Rated Group . | . . . Highest-Rated Ally . | . . . Total Orders . | . . . Ally Attacks . | . . . Total Damage . | . . . Kills . | . . . Allies Corrupted . | . . . Allies Melted . | . . . Intel | -11 -10 -10 ------- Run | Yrd Mat Sub Active Infowar (turns) 1502 | 47 741 714 Optics 459 | . . 459 Terrain 769 | 47 722 . Structural 274 | . 19 255 Robot Analysis Total . | . . . Derelict Logs Recovered 1 | . . 1 Drone Launches . | . . . Drone Recoveries . | . . . Exploration | -11 -10 -10 ------------- Run | Yrd Mat Sub Turns Passed 1791 | 118 921 752 Spaces Moved 1011 | 59 437 515 Core 6 | 6 . . Treads 628 | 53 437 138 Legs . | . . . Wheels 377 | . . 377 Hover . | . . . Flight . | . . . Fastest Speed 50 | 50 160 105 Average Speed 141 | 148 160 125 Slowest Speed 240 | 160 160 240 Overloaded Moves . | . . . Propulsion Burnouts . | . . . Robots Hopped . | . . . Potential Cave-ins . | . . . Cave-ins Triggered . | . . . Exploration Rate (%) 37 | 5 72 35 Regions Visited 2 Branch Regions 1 Pre-discovered Areas 2 | . 1 1 Known Exits Taken . | . . . Unknown Exits Taken 2 | 1 1 . Scrap Searched . | . . . Spaces Dug . | . . . Terrain Destroyed 58 | . . 58 Melee . | . . . Projectile . | . . . AOE 58 | . . 58 Terrain Rammed . | . . . Walls Destroyed . | . . . Machines Disabled . | . . . Actions | -11 -10 -10 --------- Run | Yrd Mat Sub Total 1197 | 74 557 566 Wait 64 | . 64 . Move 1009 | 58 436 515 Hop . | . . . Pick Up 19 | 3 3 13 Fast Attach 8 | 7 1 . Attach 7 | . 1 6 Detach . | . . . Swap 9 | . 1 8 Drop . | . . . Fire 80 | 6 50 24 Melee . | . . . Ram . | . . . Kick . | . . . Crush 1 | . 1 . Escape Stasis . | . . . Rewire . | . . . Trap . | . . . Miscellaneous . | . . . Route ------- -11/Scrapyard -10/Materials (discovered 5 exits: [*Mat x3] / [*Min] / [*Sub]) -10/Subcaves (discovered 1 exit: [*Scr]) History --------- Turn | Location | Event 6 | -11/Scrapyard | Discovered new exit (range 14) 119 | -11/Scrapyard | Entered Materials 265 | -10/Materials | Discovered new exit (range 13) 310 | -10/Materials | Build established: Mutant 461 | -10/Materials | Discovered new exit (range 13) 521 | -10/Materials | Discovered new exit (range 9) 629 | -10/Materials | Discovered new exit (range 13) 751 | -10/Materials | Discovered new exit (range 6) 1040 | -10/Materials | Entered Subcaves 1041 | -10/Subcaves | Approached by a straggling Scientist 1056 | -10/Subcaves | Learned location of Storage (-9) 1061 | -10/Subcaves | Core integrity fell below 50% 1089 | -10/Subcaves | Lost 3 parts (2n1w) 1179 | -10/Subcaves | Ambushed by Subdweller buried in earth 1260 | -10/Subcaves | Core integrity fell below 20% 1299 | -10/Subcaves | Shifting Twisted Machinery released Sub. Machine Gun 1308 | -10/Subcaves | Shifting Twisted Machinery released Battle Rifle 1474 | -10/Subcaves | Scientist uncovered a shortcut to Scraptown 1778 | -10/Subcaves | A swath of the cavern ceiling suddenly collapsed 1792 | -10/Subcaves | Destroyed by S-10 Pest with Light Assault Rifle Last Messages --------------- 01307_ Triggered Shrapnel Trap. 01307_ An expanding cloud of shrapnel blasts out in all directions. 01307_ Structural Scanner destroyed. Battle Rifle falls loose from the Twisted Machinery. 01309_ Acquired Sub. Machine Gun. 01343_ Y-45 Defender destroyed. F1-NQZ(c): "I think it's somewhere east of here" 01349_ Hvy. Assault Rifle fries itself beyond repair. 01351_ Subatomizers dissect the Lgt. Armor Plating. 01352_ Acquired 5 matter. 01353_ Lgt. Armor Plating fries itself beyond repair. 01355_ Acquired Lgt. Treads. 01364_ Acquired 12 matter. 01365_ Acquired 13 matter. 01395_ The unstable cave ceiling collapses. F1-NQZ(c): "I think it's somewhere northeast of here" F1-NQZ(c): "I think it's somewhere east of here" 01474_ F1-NQZ(c): "Hah, right again, there it is!" 01496_ F1-NQZ(c) exits level. A swath of the cavern ceiling suddenly collapses. Map ----- +----------------------------------------------------+ | # ##???????????????????????????????????????? | | ### # #???????????????????????????????????????? | | ## #####???????????????????????????????????? | | ## # #???????????????????????????????????? | | # # #???????????????????????????????????? | | #???????????????????????????????????? | | #???????????????????????????????????? | | #???????????????????????????????????? | | ##???????????????????????????????????? | | ### #????????????????????????????????????? | | ##?##### #????????????????????????????????????? | | #????## #????????????????????????????????????? | | ##???# ##???????????????????????????????????? | | ## #???# #???????????????????????????????????? | | # ##???## ##????????##?????????????????????????? | | ## #???# #?????#### ###??????????????????????? | | # ##??## ## #?????# #??????????????????????? | | #???# ####?##### #??????????????????????? | | # #### ##????" " #??????????????????????? | | #% ## #????? #??????????????????????? | | # ##?????%s ######?????????????????? | | ### # #??????? #?????????????????? | | ##?### # #????????? s #??????????????????? | | #### # ##?????????? #??????????????????? | | # # #???????????# #####??????????????? | | # ##?????????### @ #######????????? | | ### #[ ##????????## #????? | | #?###### #????????# #????? | | #???### ##????????# ; ### ????? | | #### # #????????#;;;## ##???? ????? | | ### ##?#####??##;;%###??????? ### ?????? | | ??# # #### ##??#;###???????????#????? ?????? | | #### # ### ####;"#????????????????????????? | | ### ## ### ####;###????????????????????????? | | ## %#"#"## #????????????????????????? | | """"""# #????????????????????????? | | ""#### #????????????????????? | | * ##% "# ##???? ##????????????????????? | | [ #### #????????????????????????????? | | ######??#### #????????????????????????????? | | ###????????####????????????????????????????? | | ##???????????????????????????????????????? | | #???????????????????????????????????????? | | ### ##???????????????????????????????????????? | | #### #????????????????????????????????????????? | | ### #????????????????????????????????????????? | | ## #????????????????????????????????????????? | | ## ##????????????????????????????????????????? | | ###?????????????????????????????????????????? | | #???????????????????????????????????????????? | +----------------------------------------------------+ Best States ------------- Heat Dissipation 25 Energy Generation 10 Energy Capacity 250 Matter Stores 300 Matter Capacity 300 Sight Range 21 Terrain Scan Range 16 Terrain Scan Density 10 Core Shielding 20 Evasion (%) 40 Recoil Reduction 2 Item Schematics ----------------- None Robot Schematics ------------------ None Fabricated ------------ Nothing Repaired ---------- Nothing Alien Tech Used ----------------- None Achievements -------------- None Challenges ------------ None Game ------ Seed ModifiedNeutronDisintegrator Manual? 0 Play Time 00:12:05 Cumulative 128.3 hours Start 2025.06.25 @ 17:32:17 End 2025.06.25 @ 17:42:16 Sessions 1 Manual Loads 0 Difficulty Rogue Special Mode None Game No. 138 Rogue 138 Adventurer 0 Explorer 0 Win Type - Total 2 Types 1/0/0/1/0/0/0/0/0/0 Lore% 61 Gallery% 57 Achievement% 51 Wizard Run 0 Options --------- Layout 1 ASCII 0 Keyboard 1 Movement Numpad Keybinds 0 Fullscreen 1 Font 32/SmallcapsGlow Map View 77x35 Zoom Use 0% Tactical HUD 1 Map Filters NONE Filters NONE Steam 1 RUN: c378881e-195f-43a7-936b-35ff839a3f93